lending/lending_fUSD_20260411
["ID","MTS","AMOUNT","RATE_DAILY","PERIOD"]
[420266736,1775885435528,-2177.19181123,0.00010236,2]
[420266740,1775885437855,-397.58451071,0.00010236,2]
[420266741,1775885437872,-1404.93135988,0.00010236,2]
[420266742,1775885437886,-784.06423678,0.00010236,2]
[420266743,1775885437902,-1384.02974446,0.00010236,2]
[420266872,1775885440108,-18336.197719,0.00010236,2]
[420266877,1775885440163,-726.69,0.00010236,2]
[420266887,1775885440640,-6140.59794178,0.00010236,2]
[420266928,1775885443730,-309563.71400912,0.00010236,2]
[420266936,1775885446172,-1225.22731239,0.00010236,2]
[420266981,1775885446623,-156993.30635462,0.00010236,2]
[420266983,1775885446648,-2769.80224774,0.00010236,2]
[420267001,1775885454879,523.451836,0.00010185,2]
[420267002,1775885466791,500.0,0.00010136,2]
[420267003,1775885471070,7060.558164,0.00010136,2]
[420267004,1775885471099,10000.01,0.00010136,2]
[420267005,1775885481625,2863.509072,7.945e-05,2]
[420267006,1775885498445,1500.0,9.39e-05,2]
[420267007,1775885528950,1536.0,9.39e-05,3]
[420267008,1775885538091,22382.60051006,0.000161,120]
[420267011,1775885721967,5000.01,9.275e-05,2]
[420267012,1775885722006,713.61,9.275e-05,2]
[420267013,1775885780415,2549.84244254,0.00015875,120]
[420267014,1775885798121,500.0,9.284e-05,2]
[420267015,1775885802617,5000.01,9.275e-05,2]
[420267016,1775885802655,10000.01,9.275e-05,2]
[420267017,1775885802695,722.8955016,9.275e-05,2]
[420267018,1775885802729,1538.15983701,9.275e-05,2]
[420267019,1775885802768,2676.05533861,9.275e-05,2]
[420267020,1775885802804,1245.69630217,9.275e-05,2]
[420267021,1775885802847,359.4887216,9.275e-05,2]
[420267022,1775885805196,-2751.11,9.275e-05,2]
[420267023,1775885805273,-5000.01,9.275e-05,2]
[420267024,1775885807375,-5000.01,9.275e-05,2]
[420267025,1775885807583,-5000.01,9.275e-05,2]
[420267026,1775885807716,-5000.01,9.275e-05,2]
[420267027,1775885807837,-5000.01,9.275e-05,2]
[420267028,1775885807944,-5000.01,9.275e-05,2]
[420267029,1775885808086,-2398.67429901,9.275e-05,2]
[420267030,1775885827422,151.0,9.275e-05,3]
[420267031,1775885886693,1614.0,9.275e-05,3]
[420267032,1775885920757,166.66,9.862e-05,2]
[420267033,1775885945782,1534.0,9.862e-05,3]
[420267034,1775885977907,-175.32523568,9.932e-05,2]
[420267035,1775885977949,-2284.21892298,9.966e-05,2]
[420267036,1775885978005,-150.0,0.0001,2]
[420267037,1775885978051,-408.16552015,0.00010022,4]
[420267038,1775886006833,179.36,9.574e-05,2]
[420267039,1775886079492,2167.36607616,0.00015863,120]
[420267040,1775886088091,2442.93,9.835e-05,2]
[420267041,1775886088234,178.089,9.835e-05,2]
[420267042,1775886124766,10000.01,9.194e-05,2]
[420267043,1775886124804,3609.46,9.194e-05,2]
[420267044,1775886128869,304.26214114,9.954e-05,2]
[420267045,1775886149907,221.73082498,9.936e-05,2]
[420267046,1775886161267,2000.0,9.54e-05,2]
[420267047,1775886163341,-204.08276007,0.0001,4]
[420267048,1775886163371,-157.0,0.00010022,3]
[420267049,1775886163404,-173.0,0.00010022,3]
[420267050,1775886163433,-159.26387441,0.0001003,2]
[420267051,1775886163464,-250.0,0.0001003,2]
[420267052,1775886163494,-455.52174071,0.0001003,4]
[420267053,1775886163524,-159.26387441,0.00010031,2]
[420267054,1775886163554,-150.0,0.00010035,2]
[420267055,1775886163589,-500.0,0.00010035,2]
[420267056,1775886163622,-500.0,0.00010035,2]
[420267057,1775886163656,-182.54942982,0.00010035,2]
[420267058,1775886163688,-500.0,0.00010035,2]
[420267059,1775886163716,-500.0,0.00010035,2]
[420267060,1775886163753,-353.01926308,0.00010035,2]
[420267061,1775886163783,-500.0,0.00010035,2]
[420267062,1775886163815,-12.608115,0.00010035,2]
[420267063,1775886164128,-487.391885,0.00010035,2]
[420267064,1775886164223,-500.0,0.00010035,2]
[420267065,1775886164284,-500.0,0.00010035,2]
[420267066,1775886164391,-438.80905204,0.00010035,2]
[420267067,1775886164453,-162.88335613,0.00010035,2]
[420267068,1775886164532,-500.0,0.00010035,2]
[420267069,1775886164565,-202.93930479,0.00010035,2]
[420267070,1775886164608,-500.0,0.00010035,2]
[420267071,1775886164720,500.0,0.00010035,2]
[420267072,1775886165043,500.0,0.00010035,2]
[420267073,1775886169388,500.0,0.00010035,2]
[420267074,1775886169473,500.0,0.00010035,2]
[420267075,1775886169564,500.0,0.00010035,2]
[420267076,1775886169629,500.0,0.00010035,2]
[420267077,1775886169675,415.96280408,0.00010035,2]
[420267078,1775886169705,84.03719592,0.00010035,2]
[420267079,1775886169768,500.0,0.00010035,2]
[420267080,1775886169862,500.0,0.00010035,2]
[420267081,1775886169922,500.0,0.00010035,2]
[420267082,1775886169973,500.0,0.00010035,2]
[420267083,1775886170020,500.0,0.00010035,2]
[420267084,1775886170095,500.0,0.00010035,2]
[420267085,1775886172073,-1512.25017502,0.00010036,2]
[420267086,1775886172578,500.0,0.00010035,2]
[420267087,1775886173124,-5000.01,0.00010036,2]
[420267088,1775886176417,-5000.01,0.00010036,2]
[420267089,1775886179239,-5000.01,0.00010036,2]
[420267090,1775886182316,-5000.01,0.00010036,2]
[420267091,1775886186997,-5000.01,0.00010036,2]
[420267092,1775886187359,500.0,0.00010035,2]
[420267093,1775886187614,500.0,0.00010035,2]
[420267094,1775886188286,500.0,0.00010035,2]
[420267095,1775886188553,500.0,0.00010035,2]
[420267096,1775886188902,500.0,0.00010035,2]
[420267097,1775886189268,500.0,0.00010035,2]
[420267098,1775886189399,500.0,0.00010035,2]
[420267099,1775886190833,-5000.01,0.00010036,2]
[420267100,1775886190873,500.0,0.00010035,2]
[420267101,1775886191483,-5000.01,0.00010036,2]
[420267102,1775886194998,500.0,0.00010035,2]
[420267103,1775886209883,-5000.01,0.00010036,2]
[420267104,1775886226555,-5000.01,0.00010036,2]
[420267105,1775886241303,300.0,0.00010035,2]
[420267106,1775886246485,1575.0,0.00010036,2]
[420267107,1775886257689,-6056.13345106,0.00010036,2]
[420267108,1775886257943,-10000.01,0.00010036,2]
[420267109,1775886257995,-10000.01,0.00010036,2]
[420267110,1775886258690,-10000.01,0.00010036,2]
[420267111,1775886258810,-10000.01,0.00010036,2]
[420267112,1775886259396,-10000.01,0.00010036,2]
[420267113,1775886259650,-10000.01,0.00010036,2]
[420267114,1775886259677,-10000.01,0.00010036,2]
[420267115,1775886259710,-10000.01,0.00010036,2]
[420267116,1775886301086,300.0,0.00010035,2]
[420267117,1775886301122,1200.0,0.00010035,2]
[420267118,1775886301152,199.0,0.00010035,2]
[420267119,1775886301720,300.0,0.00010035,2]
[420267120,1775886305339,150.0,0.00010035,2]
[420267121,1775886305681,500.0,0.00010035,2]
[420267122,1775886305744,500.0,0.00010035,2]
[420267123,1775886305861,500.0,0.00010035,2]
[420267124,1775886305955,500.0,0.00010035,2]
[420267125,1775886306182,242.05751335,0.00010035,2]
[420267126,1775886308844,170.98,7.364e-05,2]
[420267127,1775886309035,170.98,8.591e-05,2]
[420267128,1775886309241,170.98,9.819e-05,2]
[420267129,1775886309751,-5096.01248665,0.00010036,2]
[420267130,1775886310109,-10000.01,0.00010036,2]
[420267131,1775886310248,-10000.01,0.00010036,2]
[420267132,1775886310301,-10000.01,0.00010036,2]
[420267133,1775886349594,1630.95,9.198e-05,2]
[420267134,1775886379194,1842.26116474,0.00015854,120]
[420267135,1775886481309,300.0,9.935e-05,2]
[420267136,1775886482893,150.0,9.935e-05,2]
[420267137,1775886514649,500.0,9.935e-05,2]
[420267138,1775886514756,500.0,9.935e-05,2]
[420267139,1775886520678,247.11348415,9.935e-05,2]
[420267140,1775886520731,500.0,9.935e-05,2]
[420267141,1775886520786,500.0,9.935e-05,2]
[420267142,1775886521213,500.0,9.935e-05,2]
[420267143,1775886521308,500.0,9.935e-05,2]
[420267144,1775886521386,357.16633643,9.935e-05,2]
[420267145,1775886521527,500.0,9.935e-05,2]
[420267146,1775886521586,254.24436252,9.935e-05,2]
[420267147,1775886521696,500.0,9.935e-05,2]
[420267148,1775886524121,500.0,9.935e-05,2]
[420267149,1775886524168,500.0,9.935e-05,2]
[420267150,1775886524225,500.0,9.935e-05,2]
[420267151,1775886524273,500.0,9.935e-05,2]
[420267152,1775886524340,500.0,9.935e-05,2]
[420267153,1775886524395,500.0,9.935e-05,2]
[420267154,1775886524433,60.5358169,9.935e-05,2]
[420267155,1775886524461,439.4641831,9.935e-05,2]
[420267156,1775886524497,580.7518996,9.935e-05,2]
[420267157,1775886524566,500.0,9.935e-05,2]
[420267158,1775886524615,500.0,9.935e-05,2]
[420267159,1775886524659,500.0,9.935e-05,2]
[420267160,1775886524701,500.0,9.935e-05,2]
[420267161,1775886524743,500.0,9.935e-05,2]
[420267162,1775886524796,500.0,9.935e-05,2]
[420267163,1775886524842,500.0,9.935e-05,2]
[420267164,1775886524901,500.0,9.935e-05,2]
[420267165,1775886524971,500.0,9.935e-05,2]
[420267166,1775886525039,500.0,9.935e-05,2]
[420267167,1775886525089,500.0,9.935e-05,2]
[420267168,1775886525136,500.0,9.935e-05,2]
[420267169,1775886525222,500.0,9.935e-05,2]
[420267170,1775886525269,500.0,9.935e-05,2]
[420267171,1775886525327,500.0,9.935e-05,2]
[420267172,1775886525482,500.0,9.935e-05,2]
[420267173,1775886525534,500.0,9.935e-05,2]
[420267174,1775886525618,479.7939173,9.935e-05,2]
[420267175,1775886525665,20.2060827,9.935e-05,2]
[420267176,1775886525764,500.0,9.935e-05,2]
[420267177,1775886541431,300.0,9.935e-05,2]
[420267178,1775886551152,150.0,9.935e-05,3]
[420267179,1775886601107,300.0,9.935e-05,2]
[420267180,1775886601186,1200.0,9.935e-05,2]
[420267181,1775886605634,1603.0,9.935e-05,3]
[420267182,1775886607491,157.0,9.935e-05,3]
[420267184,1775886631846,-1000.0,9.936e-05,2]
[420267185,1775886631855,-938.21130598,9.936e-05,2]
[420267186,1775886632026,-1186.8261432,9.936e-05,2]
[420267187,1775886632038,-470.9051551,9.936e-05,2]
[420267188,1775886632069,-15254.90149572,9.936e-05,2]
[420267189,1775886632079,-370711.69523514,9.936e-05,2]
[420267201,1775886640962,-2088.11203752,9.936e-05,2]
[420267202,1775886640982,-300.0,9.936e-05,2]
[420267217,1775886643093,-478.51655685,9.936e-05,2]
[420267218,1775886643182,-1256.63751404,9.936e-05,2]
[420267219,1775886643315,-5084.31989756,9.936e-05,2]
[420267220,1775886643494,-1382.08232065,9.936e-05,2]
[420267239,1775886646010,-17526.72290876,9.936e-05,2]
[420267240,1775886646304,-1063.10051189,9.936e-05,2]
[420267264,1775886661162,300.0,9.935e-05,2]
[420267265,1775886663739,245.0,9.935e-05,2]
[420267266,1775886663914,150.0,9.935e-05,2]
[420267267,1775886665708,479.36287222,9.935e-05,2]
[420267268,1775886667019,1700.0,9.936e-05,3]
[420267269,1775886668315,2895.44104508,7.945e-05,2]
[420267270,1775886668345,10000.01,7.945e-05,2]
[420267271,1775886668387,7858.68475892,7.945e-05,2]
[420267272,1775886673565,165.0,9.936e-05,3]
[420267273,1775886677539,200.0,9.6e-05,2]
[420267274,1775886678186,500.0,9.935e-05,2]
[420267275,1775886678244,500.0,9.935e-05,2]
[420267276,1775886678298,500.0,9.935e-05,2]
[420267277,1775886678426,500.0,9.935e-05,2]
[420267278,1775886678491,500.0,9.935e-05,2]
[420267279,1775886678545,215.63873037,9.935e-05,2]
[420267280,1775886678624,500.0,9.935e-05,2]
[420267281,1775886678672,500.0,9.935e-05,2]
[420267282,1775886678714,500.0,9.935e-05,2]
[420267283,1775886678810,500.0,9.935e-05,2]
[420267284,1775886679261,1156.95,9.198e-05,2]
[420267285,1775886679317,500.0,9.935e-05,2]
[420267286,1775886679399,500.0,9.935e-05,2]
[420267287,1775886679474,500.0,9.935e-05,2]
[420267288,1775886679520,500.0,9.935e-05,2]
[420267289,1775886679569,500.0,9.935e-05,2]
[420267290,1775886679614,500.0,9.935e-05,2]
[420267291,1775886679674,500.0,9.935e-05,2]
[420267292,1775886679765,1565.92199003,0.00015969,120]
[420267293,1775886679859,262.42126963,9.935e-05,2]
[420267294,1775886688194,2693.313,9.737e-05,2]
[420267295,1775886688398,182.625,9.737e-05,2]
[420267296,1775886727169,1546.0,9.737e-05,3]
[420267297,1775886786082,1000.0,9.836e-05,2]
[420267298,1775886786476,1569.0,9.737e-05,3]
[420267299,1775886846630,1505.0,9.737e-05,3]
[420267300,1775886867314,3278.33,9.198e-05,2]
[420267301,1775886911030,157.0,9.198e-05,3]
[420267302,1775886911075,1430.0,9.198e-05,3]
[420267303,1775886911501,1430.0,9.872e-05,3]
[420267304,1775886911763,2199.68,9.836e-05,2]
[420267305,1775886911793,8463.4691,9.836e-05,2]
[420267307,1775886948493,1000.0,9.836e-05,2]
[420267308,1775886952866,3297.35,9.198e-05,2]
[420267310,1775886966840,2500.0,9.836e-05,2]
[420267311,1775886967596,1287.0,9.198e-05,3]
[420267312,1775886967868,1287.0,9.872e-05,3]
[420267313,1775886979150,1331.03369152,0.00015958,120]
[420267314,1775887027890,628.66,9.198e-05,3]
[420267315,1775887027927,529.34,9.198e-05,3]
[420267316,1775887028147,1158.0,9.872e-05,3]
[420267317,1775887068155,197.8342,9.833e-05,2]
[420267318,1775887086387,1042.0,9.198e-05,3]
[420267319,1775887086871,1042.0,9.872e-05,3]
[420267320,1775887111664,1000.0,9.836e-05,2]
[420267321,1775887114693,5030.8358,8e-05,2]
[420267322,1775887114727,1640.60869657,8e-05,2]
[420267323,1775887129768,2500.0,9.836e-05,2]
[420267324,1775887133482,249.41,9.075e-05,2]
[420267325,1775887145489,952.0,9.198e-05,3]
[420267326,1775887145769,952.0,9.872e-05,3]
[420267327,1775887167737,200.0,9.7e-05,2]
[420267328,1775887167980,3505.99130343,9.836e-05,2]
[420267329,1775887168052,10000.01,9.836e-05,2]
[420267330,1775887168107,10000.01,9.836e-05,2]
[420267331,1775887168168,10000.01,9.836e-05,2]
[420267332,1775887168212,10000.01,9.836e-05,2]
[420267333,1775887168251,10000.01,9.836e-05,2]
[420267334,1775887168289,10000.01,9.836e-05,2]
[420267335,1775887168318,10000.01,9.836e-05,2]
[420267336,1775887191465,1120.322656,9.787e-05,2]
[420267337,1775887208452,157.0,9.787e-05,3]
[420267338,1775887209349,2152.632826,7.945e-05,2]
[420267339,1775887209641,169.0,9.787e-05,3]
[420267340,1775887241796,175.7,9e-05,2]
[420267341,1775887243670,169.96,9.704e-05,2]
[420267342,1775887258601,-500.0,9.011e-05,2]
[420267343,1775887279202,1131.37863779,0.00015948,120]
[420267345,1775887321826,200.0,9.011e-05,2]
[420267346,1775887364424,4800.01,9.112e-05,2]
[420267347,1775887364465,5000.01,9.112e-05,2]
[420267348,1775887364498,5000.01,9.112e-05,2]
[420267349,1775887364525,5000.01,9.112e-05,2]
[420267350,1775887367507,-1055.394518,9.112e-05,2]
[420267351,1775887370845,-5000.01,9.112e-05,2]
[420267352,1775887370860,-5000.01,9.112e-05,2]
[420267353,1775887370874,-5000.01,9.112e-05,2]
[420267354,1775887370891,-5000.01,9.112e-05,2]
[420267355,1775887370905,-5000.01,9.112e-05,2]
[420267356,1775887372543,-5000.01,9.112e-05,2]
[420267357,1775887372698,-5000.01,9.112e-05,2]
[420267358,1775887372823,-5000.01,9.112e-05,2]
[420267359,1775887373014,-5000.01,9.112e-05,2]
[420267360,1775887373182,-5000.01,9.112e-05,2]
[420267361,1775887375907,-5000.01,9.112e-05,2]
[420267362,1775887375944,-5000.01,9.112e-05,2]
[420267363,1775887375959,-5000.01,9.112e-05,2]
[420267364,1775887375995,-5000.01,9.112e-05,2]
[420267365,1775887376009,-5000.01,9.112e-05,2]
[420267366,1775887378646,-1009.8,8.996e-05,2]
[420267367,1775887394172,-300.0,9.111e-05,2]
[420267368,1775887409706,-5000.01,9.112e-05,2]
[420267369,1775887409957,-5000.01,9.112e-05,2]
[420267370,1775887410062,-1583.204518,9.112e-05,2]
[420267371,1775887410094,-1833.600964,9.112e-05,2]
[420267372,1775887448539,873.0,9.112e-05,3]
[420267373,1775887454554,-500.0,9.661e-05,3]
[420267374,1775887454634,-500.0,9.661e-05,3]
[420267375,1775887454668,-533.00628845,9.661e-05,3]
[420267376,1775887454720,-500.0,9.661e-05,3]
[420267377,1775887455212,-500.0,9.661e-05,3]
[420267378,1775887455249,-500.0,9.661e-05,3]
[420267379,1775887455291,-150.0,9.661e-05,3]
[420267380,1775887455322,-500.0,9.661e-05,3]
[420267381,1775887455363,-500.0,9.661e-05,3]
[420267382,1775887455402,-150.0,9.661e-05,3]
[420267383,1775887455448,-500.0,9.661e-05,3]
[420267384,1775887455490,-159.96808798,9.661e-05,3]
[420267385,1775887455819,-14.06124714,9.661e-05,3]
[420267386,1775887455856,-208.58598823,9.661e-05,3]
[420267387,1775887455902,-500.0,9.661e-05,3]
[420267388,1775887455958,-500.0,9.661e-05,3]
[420267389,1775887456019,-500.0,9.661e-05,3]
[420267390,1775887456073,-346.79263505,9.661e-05,3]
[420267391,1775887511666,841.0,9.661e-05,3]
[420267392,1775887522993,157.0,9.661e-05,3]
[420267393,1775887529302,211.15,8.986e-05,2]
[420267394,1775887530814,208.583441,9.562e-05,2]
[420267395,1775887531191,500.0,9.562e-05,2]
[420267396,1775887531400,150.0,9.562e-05,2]
[420267397,1775887531680,150.0,9.562e-05,2]
[420267398,1775887531739,500.0,9.562e-05,2]
[420267399,1775887533099,150.0,9.562e-05,2]
[420267400,1775887533151,150.0,9.562e-05,2]
[420267401,1775887533195,500.0,9.562e-05,2]
[420267402,1775887533234,150.0,9.562e-05,2]
[420267403,1775887533642,500.0,9.562e-05,2]
[420267404,1775887533711,259.2666299,9.562e-05,2]
[420267405,1775887533763,182.61826563,9.562e-05,2]
[420267406,1775887533806,500.0,9.562e-05,2]
[420267407,1775887533846,500.0,9.562e-05,2]
[420267408,1775887534039,500.0,9.562e-05,2]
[420267409,1775887534116,500.0,9.562e-05,2]
[420267410,1775887534243,500.0,9.562e-05,2]
[420267411,1775887534293,500.0,9.562e-05,2]
[420267412,1775887534544,500.0,9.562e-05,2]
[420267413,1775887534592,500.0,9.562e-05,2]
[420267414,1775887534654,500.0,9.562e-05,2]
[420267415,1775887534697,166.13607027,9.562e-05,2]
[420267416,1775887534768,596.10133937,9.562e-05,2]
[420267417,1775887534880,500.0,9.562e-05,2]
[420267418,1775887534974,469.15425383,9.562e-05,2]
[420267419,1775887535012,30.84574617,9.562e-05,2]
[420267420,1775887535086,344.80964703,9.562e-05,2]
[420267421,1775887535193,500.0,9.562e-05,2]
[420267422,1775887535293,500.0,9.562e-05,2]
[420267423,1775887535420,500.0,9.562e-05,2]
[420267424,1775887535564,500.0,9.562e-05,2]
[420267425,1775887535677,595.95697511,9.562e-05,2]
[420267426,1775887549402,5000.01,9.736e-05,2]
[420267427,1775887549441,5000.01,9.736e-05,2]
[420267428,1775887549479,5000.01,9.736e-05,2]
[420267429,1775887582181,248.9,9.049e-05,2]
[420267430,1775887629252,799.0,9.661e-05,3]
[420267431,1775887632130,200.0,9.7e-05,3]
[420267432,1775887634605,164.0,9.661e-05,3]
[420267445,1775887686534,759.0,9.661e-05,3]
[420267446,1775887714060,500.0,9.639e-05,2]
[420267447,1775887714216,500.0,9.639e-05,2]
[420267448,1775887715043,212.56472481,9.639e-05,2]
[420267449,1775887730666,2000.0,8.911e-05,2]
[420267450,1775887734356,-356.17861995,9.735e-05,2]
[420267451,1775887734402,-300.0,9.735e-05,2]
[420267452,1775887734452,-150.0,9.735e-05,2]
[420267453,1775887734498,-281.795932,9.735e-05,2]
[420267454,1775887734541,-500.0,9.735e-05,2]
[420267455,1775887734573,-275.93846156,9.735e-05,2]
[420267456,1775887734599,-437.10716485,9.735e-05,2]
[420267457,1775887734627,-500.0,9.735e-05,2]
[420267458,1775887734660,-500.0,9.735e-05,2]
[420267459,1775887734695,-500.0,9.735e-05,2]
[420267460,1775887734719,-500.0,9.735e-05,2]
[420267461,1775887734752,-500.0,9.735e-05,2]
[420267462,1775887734784,-172.97943891,9.735e-05,2]
[420267463,1775887734813,-500.0,9.735e-05,2]
[420267464,1775887734840,-206.0200708,9.735e-05,2]
[420267465,1775887734871,-500.0,9.735e-05,2]
[420267466,1775887734898,-537.3960882,9.735e-05,2]
[420267467,1775887734927,-500.0,9.735e-05,2]
[420267468,1775887734958,-496.84625733,9.735e-05,2]
[420267469,1775887734990,-500.0,9.735e-05,2]
[420267470,1775887735014,-500.0,9.735e-05,2]
[420267471,1775887735045,-384.40401203,9.735e-05,2]
[420267472,1775887735096,-500.0,9.735e-05,2]
[420267473,1775887735134,-401.33395437,9.735e-05,2]
[420267474,1775887745268,-150.0,9.734e-05,2]
[420267475,1775887745299,-98.66604563,9.735e-05,2]
[420267476,1775887745330,-500.0,9.735e-05,2]
[420267477,1775887745360,-500.0,9.735e-05,2]
[420267478,1775887745399,-500.0,9.735e-05,2]
[420267479,1775887745430,-500.0,9.735e-05,2]
[420267480,1775887745466,-500.0,9.735e-05,2]
[420267481,1775887745505,-500.0,9.735e-05,2]
[420267482,1775887745547,-500.0,9.735e-05,2]
[420267483,1775887745581,-500.0,9.735e-05,2]
[420267484,1775887745618,-500.0,9.735e-05,2]
[420267485,1775887745649,-500.0,9.735e-05,2]
[420267486,1775887745682,-500.0,9.735e-05,2]
[420267487,1775887745717,-500.0,9.735e-05,2]
[420267488,1775887745744,-500.0,9.735e-05,2]
[420267489,1775887745786,-500.0,9.735e-05,2]
[420267490,1775887745839,-500.0,9.735e-05,2]
[420267491,1775887745879,-500.0,9.735e-05,2]
[420267492,1775887745929,-500.0,9.735e-05,2]
[420267493,1775887745964,-500.0,9.735e-05,2]
[420267494,1775887746033,-500.0,9.735e-05,2]
[420267495,1775887746092,-251.33395437,9.735e-05,2]
[420267496,1775887747440,721.0,9.661e-05,3]
[420267497,1775887755893,-248.66604563,9.735e-05,2]
[420267498,1775887755929,-500.0,9.735e-05,2]
[420267499,1775887755958,-500.0,9.735e-05,2]
[420267500,1775887755991,-500.0,9.735e-05,2]
[420267501,1775887756022,-500.0,9.735e-05,2]
[420267502,1775887756057,-500.0,9.735e-05,2]
[420267503,1775887756094,-500.0,9.735e-05,2]
[420267504,1775887756131,-500.0,9.735e-05,2]
[420267505,1775887756169,-500.0,9.735e-05,2]
[420267506,1775887756213,-500.0,9.735e-05,2]
[420267507,1775887756253,-500.0,9.735e-05,2]
[420267508,1775887756319,-500.0,9.735e-05,2]
[420267509,1775887756376,-500.0,9.735e-05,2]
[420267510,1775887756411,-500.0,9.735e-05,2]
[420267511,1775887756444,-500.0,9.735e-05,2]
[420267512,1775887756479,-500.0,9.735e-05,2]
[420267513,1775887756510,-195.05699266,9.735e-05,2]
[420267514,1775887756539,-500.0,9.735e-05,2]
[420267515,1775887756575,-500.0,9.735e-05,2]
[420267516,1775887756606,-500.0,9.735e-05,2]
[420267517,1775887756642,-428.03522177,9.735e-05,2]
[420267518,1775887756673,-128.24173994,9.735e-05,2]
[420267519,1775887766329,-369.3619886,9.735e-05,2]
[420267520,1775887766366,-500.0,9.735e-05,2]
[420267521,1775887766511,-500.0,9.735e-05,2]
[420267522,1775887766578,-500.0,9.735e-05,2]
[420267523,1775887766609,-500.0,9.735e-05,2]
[420267524,1775887766649,-500.0,9.735e-05,2]
[420267525,1775887766691,-500.0,9.735e-05,2]
[420267526,1775887766842,-500.0,9.735e-05,2]
[420267527,1775887766988,-500.0,9.735e-05,2]
[420267528,1775887767039,-500.0,9.735e-05,2]
[420267529,1775887767138,-500.0,9.735e-05,2]
[420267530,1775887767205,-609.09277529,9.735e-05,2]
[420267531,1775887767243,-500.0,9.735e-05,2]
[420267532,1775887767281,-500.0,9.735e-05,2]
[420267533,1775887767312,-500.0,9.735e-05,2]
[420267534,1775887767350,-531.59319255,9.735e-05,2]
[420267535,1775887767405,-500.0,9.735e-05,2]
[420267536,1775887767440,-500.0,9.735e-05,2]
[420267537,1775887767479,-500.0,9.735e-05,2]
[420267538,1775887767519,-489.95204356,9.735e-05,2]
[420267539,1775887776922,-10000.0,9.736e-05,2]
[420267540,1775887782981,194.8915,9.635e-05,2]
[420267541,1775887805531,685.0,9.635e-05,3]
[420267542,1775887806099,157.0,9.635e-05,3]
[420267543,1775887807177,-1200.0,9.735e-05,2]
[420267544,1775887807202,-254.0,9.735e-05,2]
[420267545,1775887807234,-300.0,9.735e-05,2]
[420267546,1775887807258,-278.0,9.736e-05,2]
[420267547,1775887807298,-7968.0,9.736e-05,2]
[420267551,1775887832164,-4564.71013451,9.736e-05,2]
[420267552,1775887832262,-310.55827694,9.736e-05,2]
[420267553,1775887832280,-334.02485,9.736e-05,2]
[420267554,1775887832360,-161442.55292066,9.736e-05,2]
[420267555,1775887832371,-31600.70132854,9.736e-05,2]
[420267556,1775887832454,-531.73649619,9.736e-05,2]
[420267557,1775887832478,-1361.68869402,9.736e-05,2]
[420267560,1775887834840,1308.4591402,9.736e-05,30]
[420267561,1775887834933,1308.4591402,9.758e-05,30]
[420267562,1775887835476,1308.4591402,9.783e-05,30]
[420267563,1775887836201,1308.4591402,9.789e-05,30]
[420267565,1775887838461,-1284.86350181,9.736e-05,2]
[420267566,1775887838542,-657.1737184,9.736e-05,2]
[420267567,1775887838571,-412.55835336,9.736e-05,2]
[420267599,1775887840584,-726.29,9.736e-05,2]
[420267600,1775887840943,-1023.67797764,9.736e-05,2]
[420267601,1775887841177,-4516.77950097,9.736e-05,2]
[420267613,1775887843568,-299.13592569,9.736e-05,2]
[420267628,1775887848388,-11770.31223683,9.736e-05,2]
[420267629,1775887852400,291.45,9.7e-05,2]
[420267630,1775887858189,1120.322656,9.687e-05,2]
[420267631,1775887861144,300.0,9.735e-05,2]
[420267632,1775887867190,824.0,9.7e-05,3]
[420267633,1775887869738,2152.632826,7.945e-05,2]
[420267634,1775887870855,151.0,9.733e-05,2]